bitfinex/quotes_ETHUSD_20241022
["timestamp","ask_amount","ask_price","bid_price","bid_amount"]
[1729577933027,3.7645,2656.4,2655.9,5.89827165]
[1729577933228,5.83589787,2656.5,2655.9,2.13316165]
[1729577933538,3.76466,2656.3,2655.9,2.13316165]
[1729577934153,5.07241787,2656.3,2655.9,2.13316165]
[1729577934829,3.76478,2656.2,2655.9,2.13316165]
[1729577935962,4.55922,2656.1,2655.9,2.13316165]
[1729577937465,8.32424,2656.1,2655.9,2.13316165]
[1729577937870,4.55922,2656.1,2655.9,2.13316165]
[1729577938163,3.76506,2656.0,2655.9,2.13316165]
[1729577938960,4.55922,2656.1,2655.9,2.13316165]
[1729577939162,8.32423,2656.1,2655.9,2.13316165]
[1729577939728,4.55922,2656.1,2655.9,2.13316165]
[1729577941529,3.76506,2656.0,2655.9,2.13316165]
[1729577945246,4.55923,2656.1,2655.9,2.13316165]
[1729577945480,3.76506,2656.0,2655.9,2.13316165]
[1729577954387,7.52993,2656.1,2655.9,2.13316165]
[1729577954749,3.76493,2656.1,2655.9,2.13316165]
[1729577954980,7.52995,2656.1,2655.9,2.13316165]
[1729577955289,3.76493,2656.1,2655.9,2.13316165]
[1729577955488,3.76493,2656.1,2655.9,2.95856165]
[1729577955692,3.0,2656.2,2655.9,3.03386115]
[1729577955858,3.0,2656.2,2655.9,2.95856165]
[1729577957765,3.76491,2656.1,2655.9,2.95856165]
[1729577957995,3.76491,2656.1,2655.9,2.13316165]
[1729577964317,3.76506,2656.0,2655.9,2.13316165]
[1729577964799,3.76491,2656.1,2655.9,2.13316165]
[1729577965216,3.76506,2656.0,2655.9,2.13316165]
[1729577978093,10.52968,2656.2,2655.9,2.13316165]
[1729577978300,6.76478,2656.2,2655.9,2.13316165]
[1729577978608,3.76491,2656.1,2655.9,2.13316165]
[1729577984534,6.76478,2656.2,2655.9,2.13316165]
[1729577984738,3.76452,2656.4,2656.0,0.7672]
[1729577984936,3.76464,2656.3,2656.0,0.7672]
[1729577985167,3.76464,2656.3,2656.1,0.22556332]
[1729577985672,7.52913,2656.4,2656.1,0.22556332]
[1729577986166,3.76467,2656.3,2656.1,0.22556332]
[1729577989076,3.76477,2656.2,2656.1,0.22556332]
[1729577989588,3.76477,2656.2,2655.9,1.9]
[1729577989880,3.76467,2656.3,2656.0,0.22542483]
[1729577990075,7.52941,2656.3,2656.0,0.22542483]
[1729577990283,3.76479,2656.2,2656.0,0.22542483]
[1729577992772,3.76467,2656.3,2656.0,0.22542483]
[1729577994742,7.52944,2656.3,2656.0,0.22542483]
[1729577994937,3.76467,2656.3,2656.0,0.22542483]
[1729577997163,7.52943,2656.3,2656.0,0.22542483]
[1729577997491,3.76467,2656.3,2656.0,0.22542483]
[1729577998355,7.52939,2656.3,2656.0,0.22542483]
[1729577998555,3.76467,2656.3,2656.0,0.22542483]
[1729577999980,3.76461,2656.4,2656.0,0.22542483]
[1729578000291,3.76461,2656.4,2656.1,0.8076]
[1729578000292,3.76465,2656.3,2656.1,0.8076]
[1729578000498,4.35118079,2656.3,2656.2,0.2253916]
[1729578000792,0.58653079,2656.3,2656.2,0.2253916]
[1729578000952,4.35116079,2656.3,2655.9,1.9]
[1729578001153,3.76463,2656.3,2656.2,0.2253916]
[1729578001354,3.76463,2656.3,2655.9,1.9]
[1729578001655,0.7929,2656.5,2655.9,3.20775787]
[1729578001869,4.55731,2656.5,2656.0,6.0598831]
[1729578002996,3.7645,2656.4,2656.0,6.0598831]
[1729578005313,3.76434,2656.6,2656.1,1.30775787]
[1729578005607,3.76434,2656.6,2656.1,3.7649]
[1729578005781,3.76434,2656.6,2656.2,0.2253784]
[1729578005979,7.52863,2656.6,2656.2,0.2253784]
[1729578006181,3.76429,2656.6,2656.2,0.2253784]
[1729578006508,3.8197,2656.7,2656.2,0.2253784]
[1729578006715,3.76463,2656.3,2656.2,0.2253784]
[1729578007011,3.76479,2656.2,2655.9,1.9]
[1729578008385,3.76506,2656.0,2655.9,1.9]
[1729578008596,3.75206,2656.0,2655.9,1.9]
[1729578013309,3.76493,2656.1,2655.9,1.9]
[1729578013695,3.76506,2656.0,2655.9,1.9]
[1729578013897,3.76492,2656.1,2655.9,1.9]
[1729578014569,3.76492,2656.1,2656.0,0.22556344]
[1729578039674,0.7514,2656.8,2656.0,1.82854765]
[1729578039840,3.76438,2656.5,2656.2,1.30775787]
[1729578040042,3.76415,2656.7,2656.3,1.30775787]
[1729578040251,3.76415,2656.7,2656.4,0.7745]
[1729578040468,3.76392,2656.8,2656.4,0.7745]
[1729578040777,3.76392,2656.8,2656.5,0.26437527]
[1729578041477,5.07167787,2656.8,2656.5,0.26437527]
[1729578041993,3.0,2656.7,2656.5,0.26437527]
[1729578042836,6.76408,2656.7,2656.5,0.26437527]
[1729578047483,3.0,2656.7,2656.5,0.26437527]
[1729578049087,6.76408,2656.7,2656.5,0.26437527]
[1729578052093,3.0,2656.8,2656.5,0.26437527]
[1729578054164,6.76395,2656.8,2656.5,0.26437527]
[1729578054368,3.0,2656.8,2656.5,0.26437527]
[1729578055979,6.76394,2656.8,2656.5,0.26437527]
[1729578056511,3.0,2656.8,2656.5,0.26437527]
[1729578057301,3.0,2656.8,2656.5,1.57213314]
[1729578057718,3.0,2656.8,2656.5,0.26437527]
[1729578058072,6.76395,2656.8,2656.5,0.26437527]
[1729578058298,0.01883366,2657.2,2656.7,1.30775787]
[1729578058470,0.126699,2657.3,2657.0,1.30775787]
[1729578058471,3.890049,2657.3,2657.0,1.30775787]
[1729578058802,3.76342,2657.2,2657.1,0.26373222]
[1729578059166,3.890049,2657.3,2656.9,1.30775787]
[1729578059507,3.890049,2657.3,2657.1,1.02472005]
[1729578059805,6.890049,2657.3,2657.2,0.2635327]
[1729578080333,0.126699,2657.3,2657.2,0.2635327]
[1729578081258,0.126699,2657.3,2657.2,1.57044774]
[1729578081411,0.126699,2657.3,2657.2,0.2635327]
[1729578081607,0.126699,2657.3,2657.2,0.49668747]
[1729578082009,0.126699,2657.3,2657.2,2.63986582]
[1729578082249,0.126699,2657.3,2657.2,6.32795251]
[1729578086617,0.126699,2657.3,2657.2,6.32724896]
[1729578087761,0.126699,2657.3,2657.2,5.02103747]
[1729578087943,0.126699,2657.3,2657.2,1.25768747]
[1729578088256,0.126699,2657.3,2657.2,2.56389896]
[1729578089517,0.126699,2657.3,2657.2,6.32724896]
[1729578098144,0.126699,2657.3,2657.2,5.02103747]
[1729578098352,0.126699,2657.3,2657.2,6.32724896]
[1729578120312,0.126699,2657.3,2657.2,5.02103747]
[1729578120614,0.126699,2657.3,2657.2,6.32724896]
[1729578134151,0.126699,2657.3,2657.2,5.02103747]
[1729578134348,0.126699,2657.3,2657.2,6.32724896]
[1729578137553,0.126699,2657.3,2657.2,5.02103747]
[1729578137757,0.126699,2657.3,2657.2,5.33309419]
[1729578140228,0.126699,2657.3,2657.2,5.40834563]
[1729578140534,0.126699,2657.3,2657.2,6.16724563]
[1729578141526,0.126699,2657.3,2657.2,6.09199419]
[1729578142565,0.126699,2657.3,2657.2,6.16724586]
[1729578144563,0.126699,2657.3,2657.2,6.09199419]
[1729578152069,0.126699,2657.3,2657.2,6.10199419]
[1729578152648,0.126699,2657.3,2657.2,6.17724235]
[1729578155987,0.126699,2657.3,2657.2,6.10199419]
[1729578157588,0.126699,2657.3,2657.2,9.10199419]
[1729578157749,0.126699,2657.3,2657.2,10.40820568]
[1729578161462,0.126699,2657.3,2657.2,7.0368827]
[1729578161657,0.126699,2657.3,2657.2,8.34309419]
[1729578167210,0.126699,2657.3,2657.2,8.33309419]
[1729578167508,0.126699,2657.3,2657.2,5.33309419]
[1729578168121,0.126699,2657.3,2657.2,5.34309419]
[1729578176658,0.126699,2657.3,2657.2,4.0368827]
[1729578176790,0.126699,2657.3,2657.2,5.34309419]
[1729578181125,0.126699,2657.3,2657.2,5.41834361]
[1729578185205,0.126699,2657.3,2657.2,5.34309419]
[1729578186645,0.126699,2657.3,2657.2,6.72455426]
[1729578187046,0.126699,2657.3,2657.2,6.64930568]
[1729578187753,0.126699,2657.3,2657.2,5.34309419]
[1729578188855,0.126699,2657.3,2657.2,6.64930568]
[1729578190072,0.126699,2657.3,2657.2,5.34309419]
[1729578195980,0.126699,2657.3,2657.2,5.41834294]
[1729578198682,0.126699,2657.3,2657.2,5.34309419]
[1729578200893,0.126699,2657.3,2657.2,11.05915279]
[1729578201072,0.00392679,2657.3,2657.2,11.50683635]
[1729578205625,0.01883366,2658.3,2658.0,3.76214]
[1729578205929,0.7905,2658.5,2658.4,3.76166]
[1729578206248,0.42124302,2658.8,2658.4,6.38408298]
[1729578206385,1.21174302,2658.8,2658.7,3.76123]
[1729578206786,1.21174302,2658.8,2658.7,5.31894883]
[1729578208491,1.21174302,2658.8,2658.7,1.55771883]
[1729578208826,1.23244302,2658.8,2658.7,0.25150734]
[1729578209016,5.24739847,2658.8,2658.7,0.25150734]
[1729578209214,0.8112,2658.6,2658.3,1.30621149]
[1729578209727,0.8112,2658.6,2658.4,0.23370425]
[1729578209929,0.8112,2658.6,2658.4,1.53991574]
[1729578210927,0.8112,2658.6,2658.4,0.23370425]
[1729578211132,5.16057815,2658.5,2658.4,0.23370425]
[1729578211433,0.8112,2658.3,2658.0,3.20621149]
[1729578212520,0.8112,2658.2,2658.0,1.9]
[1729578213710,0.8112,2658.2,2658.0,3.20621149]
[1729578214139,0.8112,2658.2,2658.0,1.9]
[1729578214340,1.2685,2658.2,2658.0,3.20621149]
[1729578214537,1.2685,2658.2,2658.0,1.9]
[1729578216037,0.8112,2658.2,2658.0,3.20621149]
[1729578216207,0.8112,2658.2,2658.1,1.30621149]
[1729578216782,0.8112,2658.2,2658.0,3.20621149]
[1729578217648,0.8112,2658.2,2658.0,1.9]
[1729578217809,1.268507,2658.2,2658.0,1.9]
[1729578218768,1.268507,2658.2,2658.0,3.20621149]
[1729578218769,0.8048,2658.1,2658.0,3.20621149]
[1729578219052,0.8048,2658.1,2658.0,1.9]
[1729578221359,0.8048,2658.1,2658.0,3.20621149]
[1729578221565,0.8048,2658.1,2658.0,1.9]
[1729578222821,0.8048,2658.1,2658.0,3.20621149]
[1729578223156,0.8048,2658.1,2658.0,1.9]
[1729578224266,0.8048,2658.1,2658.0,2.12707295]
[1729578227178,0.8063,2659.1,2658.0,4.31822431]
[1729578227343,3.76082,2659.0,2658.5,1.30621149]
[1729578227545,0.8063,2658.9,2658.4,1.30621149]
[1729578227778,0.8063,2658.9,2658.6,0.22707638]
[1729578227992,1.80983984,2658.9,2658.5,0.22699933]
[1729578228193,1.80983984,2658.9,2658.7,0.22698299]
[1729578228398,1.80983984,2658.9,2658.6,0.22699116]
[1729578228605,1.80983984,2658.9,2658.8,0.22697483]
[1729578228761,1.80983984,2658.9,2658.7,0.22698299]
[1729578228963,1.80983984,2658.9,2658.5,1.30621149]
[1729578229157,5.57078984,2658.9,2658.5,1.30621149]
[1729578229497,1.80983984,2658.9,2658.6,0.22680108]
[1729578229656,0.8063,2658.9,2658.6,0.22680108]
[1729578230810,0.8063,2658.9,2658.5,1.30621149]
[1729578230979,0.8063,2658.9,2658.7,0.22649798]
[1729578231173,0.8063,2658.9,2658.6,0.22650614]
[1729578231480,0.8063,2658.9,2658.7,0.22649798]
[1729578231668,4.56729,2658.9,2658.5,1.30621149]
[1729578232004,4.56729,2658.9,2658.6,0.22650614]
[1729578232712,4.56729,2658.9,2658.5,1.30621149]
[1729578233110,4.56729,2658.9,2658.6,0.22650614]
[1729578234299,4.56729,2658.9,2658.5,1.30621149]
[1729578234511,4.56729,2658.9,2658.7,0.22649798]
[1729578234701,4.56729,2658.9,2658.5,1.30621149]
[1729578234865,4.56729,2658.9,2658.8,0.22648981]
[1729578235065,4.56729,2658.9,2658.5,1.30621149]
[1729578235308,4.56729,2658.9,2658.6,0.22650614]
[1729578240476,4.56729,2658.9,2658.4,1.30621149]
[1729578240676,4.56729,2658.9,2658.5,0.22651431]
[1729578240900,5.82148149,2658.6,2658.5,0.22651431]
[1729578241177,3.76169,2658.4,2658.0,3.20621149]
[1729578241480,0.7748,2658.1,2658.0,1.9]
[1729578244432,5.84309149,2658.1,2658.0,1.9]
[1729578244603,6.80359564,2658.1,2658.0,1.9]
[1729578246096,6.77959564,2658.1,2658.0,1.9]
[1729578249295,9.77959564,2658.1,2658.0,1.9]
[1729578249503,10.32959564,2658.1,2658.0,1.9]
[1729578249727,3.76236,2657.9,2657.3,0.01883366]
[1729578250007,0.8274,2657.4,2657.1,3.20621149]
[1729578250341,0.8274,2657.4,2657.1,1.9]
[1729578254368,0.8274,2657.4,2657.2,0.1974917]
[1729578257274,4.59049,2657.4,2657.2,0.1974917]
[1729578257548,0.8274,2657.4,2657.2,0.1974917]
[1729578261636,0.8274,2657.4,2657.1,1.9]
[1729578261910,0.8274,2657.4,2657.3,0.19868483]
[1729578262020,0.8274,2657.4,2657.2,0.198693]
[1729578265223,4.5905,2657.4,2657.2,0.198693]
[1729578267727,0.8274,2657.4,2657.2,0.198693]
[1729578268446,4.59049,2657.4,2657.2,0.198693]
[1729578268844,4.59049,2657.4,2657.1,1.9]
[1729578268845,3.76335,2657.2,2657.1,1.9]
[1729578269061,4.59335,2657.2,2657.1,1.9]
[1729578269394,4.99572037,2657.2,2657.1,2.09875997]
[1729578270230,6.30302276,2657.2,2657.1,2.09875997]
[1729578270558,6.30302276,2657.2,2657.1,1.9]
[1729578270729,7.30964804,2657.2,2657.1,1.9]
[1729578275740,10.30964804,2657.2,2657.1,1.9]
[1729578276383,12.17695043,2657.2,2657.1,1.9]
[1729578276547,10.87964804,2657.2,2657.1,1.9]
[1729578277818,12.18695043,2657.2,2657.1,1.9]
[1729578277996,10.87964804,2657.2,2657.1,1.9]
[1729578280012,0.75,2657.0,2656.2,0.8261]
[1729578280222,0.75,2657.0,2656.3,1.9]
[1729578280223,1.30730239,2656.5,2656.3,1.9]
[1729578280523,1.30730239,2656.4,2656.3,1.9]
[1729578280892,1.30730239,2656.4,2656.3,2.09283888]
[1729578283301,5.07165239,2656.5,2656.3,2.09283888]
[1729578284383,3.76435,2656.5,2656.3,2.09283888]
[1729578284590,0.40237037,2657.2,2656.5,0.7749]
[1729578284929,1.30730239,2657.1,2656.6,4.73182434]
[1729578285085,3.76329,2657.3,2656.7,3.76397]
[1729578285283,1.30730239,2657.1,2656.6,4.73182434]
[1729578285529,1.30730239,2657.1,2656.8,0.19305285]
[1729578285826,5.07082239,2657.1,2656.7,0.19306102]
[1729578286328,1.30730239,2656.9,2656.7,0.19306102]
[1729578286485,5.06953582,2656.9,2656.7,0.19306102]
[1729578287293,1.30574582,2656.9,2656.7,0.19306102]
[1729578288387,5.06954582,2656.9,2656.7,0.19306102]
[1729578288702,5.07122239,2656.8,2656.7,0.19306102]
[1729578289088,3.76431,2656.6,2656.3,1.9]
[1729578289399,5.07165239,2656.5,2656.3,1.9]
[1729578291833,8.83594239,2656.6,2656.3,1.9]
[1729578292525,3.76439,2656.5,2656.3,1.9]
[1729578292917,3.76431,2656.6,2656.3,1.9]
[1729578293230,7.52859,2656.6,2656.3,1.9]
[1729578294995,3.76428,2656.6,2656.3,1.9]
[1729578295210,3.76435,2656.5,2656.3,1.9]
[1729578295620,3.76449,2656.4,2656.3,1.9]
[1729578299565,3.76449,2656.4,2656.3,2.08712643]
[1729578300671,4.517367,2656.4,2656.3,2.08712643]
[1729578300833,5.271367,2656.4,2656.3,2.08712643]
[1729578301758,8.19302825,2656.4,2656.3,2.08712643]
[1729578301953,8.19302825,2656.4,2656.3,1.9]
[1729578302159,8.74302825,2656.4,2656.3,1.9]
[1729578302534,11.74302825,2656.4,2656.3,1.9]
[1729578303576,8.271367,2656.4,2656.3,1.9]
[1729578306284,8.271367,2656.4,2656.3,2.08092539]
[1729578312465,9.57937486,2656.4,2656.3,1.9]
[1729578320305,8.82537486,2656.4,2656.3,1.9]
[1729578320604,8.07249786,2656.4,2656.3,2.08122616]
[1729578321373,3.76449,2656.4,2656.3,2.08122616]
[1729578321593,5.07249786,2656.4,2656.3,2.08122616]
[1729578327211,7.57608,2656.7,2656.3,2.84972616]
[1729578327212,3.76429,2656.6,2656.3,2.84972616]
[1729578327411,3.76429,2656.6,2656.3,3.13469878]
[1729578327889,3.76429,2656.6,2656.3,2.84972616]
[1729578328707,5.07139786,2657.2,2656.6,0.7921]
[1729578328909,3.76357,2657.1,2656.6,0.7921]
[1729578329209,1.30800786,2657.1,2656.7,0.18136342]
[1729578330521,8.07154786,2657.1,2656.7,0.18136342]
[1729578332180,3.0,2657.1,2656.7,0.18136342]
[1729578332784,8.07154786,2657.1,2656.7,0.18136342]
[1729578334293,5.07136786,2657.2,2656.7,3.94541342]
[1729578334533,1.30800786,2657.1,2656.7,0.18136342]
[1729578334683,7.52679,2657.2,2656.7,0.18136342]
[1729578335323,3.7635,2657.1,2656.7,0.18136342]
[1729578335921,3.76336,2657.2,2656.8,0.7598]
[1729578336327,3.7635,2657.1,2656.9,0.18058872]
[1729578336526,3.76336,2657.2,2656.9,0.18058872]
[1729578337024,2.52502719,2659.9,2656.9,0.18058872]
[1729578337025,0.01882562,2657.6,2657.4,0.8276]
[1729578337293,3.76244,2657.9,2657.5,0.18053967]
[1729578337587,1.30800786,2657.8,2657.5,0.18053967]
[1729578337903,2.64095265,2657.8,2657.5,0.18053967]
[1729578338041,7.52543,2657.7,2657.5,0.18053967]
[1729578338478,3.76266,2657.7,2657.5,0.18053967]
[1729578340277,6.76253,2657.8,2657.5,0.18053967]
[1729578340772,3.0,2657.8,2657.5,0.18053967]
[1729578340999,3.76267,2657.7,2657.5,0.18053967]
[1729578342707,7.5254,2657.7,2657.5,0.18053967]
[1729578342991,4.98603609,2657.7,2657.5,0.18053967]
[1729578344557,1.22336609,2657.7,2657.5,0.18053967]
[1729578344895,3.0,2657.8,2657.5,0.18053967]
[1729578344896,3.76255,2657.8,2657.5,0.18053967]
[1729578345294,5.07055786,2657.8,2657.5,0.18053967]
[1729578345470,3.76255,2657.8,2657.5,0.18053967]
[1729578345995,7.48,2658.8,2657.7,1.30800786]
[1729578346162,3.76171,2658.4,2657.8,5.83460786]
[1729578346360,5.06986786,2658.3,2657.8,0.94435574]
[1729578346995,3.76171,2658.4,2657.9,3.76228]
[1729578347200,3.0,2658.5,2658.1,3.76208]
[1729578347391,3.0,2658.5,2658.2,0.7642]
[1729578347597,3.0,2658.5,2658.2,0.94432306]
[1729578347782,4.30800786,2658.5,2658.2,0.94432306]
[1729578348161,5.06946786,2658.6,2658.2,0.94432306]
[1729578348356,3.76146,2658.6,2658.2,0.94432306]
[1729578349490,3.76154,2658.5,2658.2,0.94432306]
[1729578351099,3.771,2658.7,2658.2,0.94432306]
[1729578351302,3.76141,2658.6,2658.2,0.94432306]
[1729578351804,3.76157,2658.5,2658.2,0.94432306]
[1729578359218,6.76132,2658.7,2658.2,0.94432306]
[1729578359420,3.7614,2658.6,2658.2,0.94432306]
[1729578360403,6.76132,2658.7,2658.2,0.94432306]
[1729578360608,3.76139,2658.6,2658.2,0.94432306]
[1729578362192,3.76158,2658.5,2658.2,0.94432306]
[1729578362522,3.76139,2658.6,2658.2,0.94432306]
[1729578362727,4.437529,2658.6,2658.2,0.94432306]
[1729578362912,3.7616,2658.5,2658.2,0.94432306]
[1729578364001,8.199009,2658.6,2658.2,0.94432306]
[1729578364201,4.437529,2658.6,2658.2,0.94432306]
[1729578364427,3.76153,2658.5,2658.2,0.94432306]
[1729578367436,0.8328,2658.4,2658.2,0.18012306]
[1729578367603,7.3118,2658.3,2658.2,0.18012306]
[1729578367802,3.76248,2657.9,2657.4,0.7903]
[1729578368053,3.76266,2657.7,2657.4,0.7903]
[1729578368409,3.76251,2657.8,2657.5,0.16688202]
[1729578368946,8.83137664,2657.9,2657.5,0.16688202]
[1729578369098,7.52496,2657.9,2657.5,0.16688202]
[1729578369302,3.76255,2657.8,2657.5,0.16688202]
[1729578369903,3.76248,2657.9,2657.5,0.16688202]
[1729578370334,3.76256,2657.8,2657.5,0.16688202]
[1729578371554,3.76276,2657.7,2657.5,0.16688202]
[1729578371712,3.76279,2657.6,2657.5,0.16688202]
[1729578371917,8.86340664,2657.6,2657.5,0.16688202]
[1729578372141,8.86340664,2657.6,2657.3,1.9]
[1729578372343,3.76294,2657.5,2657.3,1.9]
[1729578374325,3.76294,2657.5,2657.4,0.16717656]
[1729578375442,3.0,2657.6,2657.4,0.16717656]
[1729578379782,6.76279,2657.6,2657.4,0.16717656]
[1729578380086,8.06920664,2657.6,2657.4,0.16717656]
[1729578380290,6.76279,2657.6,2657.4,0.16717656]
[1729578380453,3.76293,2657.5,2657.4,0.16717656]
[1729578382524,9.3291073,2657.5,2657.4,0.16717656]
[1729578382729,8.06934664,2657.5,2657.4,0.16717656]
[1729578383027,6.76307,2657.4,2657.3,1.9]
[1729578383326,8.06948664,2657.4,2657.3,1.9]
[1729578384508,8.06948664,2657.4,2657.3,2.06778359]
[1729578384827,9.3292883,2657.4,2657.3,2.06778359]
[1729578414089,6.76307,2657.4,2657.3,2.06778359]
[1729578416863,3.76284,2657.6,2657.3,2.06778359]
[1729578417462,3.76301,2657.5,2657.3,2.06778359]
[1729578419212,3.76284,2657.6,2657.3,2.06778359]
[1729578419504,3.76296,2657.5,2657.3,2.06778359]
[1729578420469,7.52573,2657.6,2657.3,2.06778359]
[1729578420672,3.76284,2657.6,2657.3,2.06778359]
[1729578421305,7.52576,2657.6,2657.3,2.06778359]
[1729578422876,3.76284,2657.6,2657.3,2.06778359]
[1729578424773,1.30641664,2657.7,2657.3,2.06778359]
[1729578424973,1.30641664,2657.7,2657.4,0.7631]
[1729578425276,3.7628,2657.6,2657.4,0.7631]
[1729578425570,3.7628,2657.6,2657.5,0.16792348]
[1729578427806,5.06921664,2657.6,2657.5,0.16792348]
[1729578428011,1.30641664,2657.6,2657.5,0.16792348]
[1729578428180,5.06907664,2657.7,2657.5,0.16792348]
[1729578429089,3.76279,2657.6,2657.5,0.16792348]
[1729578429493,5.06920664,2657.6,2657.5,0.16792348]
[1729578430118,3.76279,2657.6,2657.5,0.16792348]
[1729578430317,8.06900664,2657.8,2657.5,0.16792348]
[1729578431011,1.30641664,2657.7,2657.5,0.16792348]
[1729578432634,4.17690384,2658.0,2657.6,0.7665]
[1729578432789,4.17690384,2658.0,2657.6,0.9341679]
[1729578435065,4.17690384,2658.0,2657.7,3.76254]
[1729578435066,0.41460384,2658.0,2657.7,3.76254]
[1729578435187,0.41460384,2658.0,2657.7,5.90115664]
[1729578435516,0.41460384,2658.0,2657.8,0.16756041]
[1729578435719,0.41460384,2658.0,2657.7,4.59474]
[1729578436100,0.41460384,2658.0,2657.8,0.16743675]
[1729578436433,0.41460384,2658.0,2657.7,4.59474]
[1729578436630,0.41460384,2658.0,2657.9,0.16742857]
[1729578436938,1.72102048,2658.0,2657.9,0.16742857]
[1729578437309,1.72102048,2658.0,2657.3,1.9]
[1729578437310,3.76289,2657.6,2657.3,1.9]
[1729578437631,5.06930664,2657.6,2657.3,1.9]
[1729578438002,3.76289,2657.6,2657.3,2.6959]
[1729578440140,5.84320664,2657.8,2657.3,2.6959]
[1729578440348,3.76268,2657.7,2657.3,2.6959]
[1729578441326,3.76281,2657.6,2657.3,2.6959]
[1729578449444,3.76281,2657.6,2657.4,0.16281729]
[1729578451458,8.83974664,2657.5,2657.4,0.16281729]
[1729578451822,8.83974664,2657.5,2657.3,1.9]
[1729578451823,6.76307,2657.4,2657.3,1.9]
[1729578452057,8.06948664,2657.4,2657.3,1.9]
[1729578454134,8.06948664,2657.4,2657.3,2.04684093]
[1729578454864,8.06948664,2657.4,2657.3,1.9]
[1729578455031,9.42582847,2657.4,2657.3,1.9]
[1729578455362,3.0,2657.4,2657.3,2.0469963]
[1729578456822,4.30641664,2657.4,2657.3,2.0469963]
[1729578457144,3.0,2657.4,2657.3,2.0469963]
[1729578458557,6.76307,2657.4,2657.3,2.0469963]
[1729578462526,7.52287,2657.4,2657.3,2.0469963]
[1729578462863,8.87815183,2657.4,2657.3,2.0469963]
[1729578464159,10.18456847,2657.4,2657.3,2.0469963]
[1729578464370,8.87815183,2657.4,2657.3,2.0469963]
[1729578464866,10.18456847,2657.4,2657.3,2.0469963]
[1729578465669,10.18456847,2657.4,2657.3,1.9]
[1729578468995,10.18456847,2657.4,2657.3,2.04223852]
[1729578476904,10.73456847,2657.4,2657.3,2.04223852]
[1729578477073,0.8089,2658.9,2658.1,3.76199]
[1729578477274,1.30641664,2658.5,2658.0,0.7786]
[1729578477478,3.76176,2658.4,2658.2,0.12878363]
[1729578477664,4.137936,2658.4,2658.1,0.1287918]
[1729578477886,4.137936,2658.4,2658.3,0.12877546]
[1729578478285,3.76182,2658.3,2658.0,0.7786]
[1729578479002,1.30641664,2658.4,2658.0,0.7786]
[1729578479365,5.06808664,2658.4,2658.0,0.7786]
[1729578479609,5.06808664,2658.4,2658.1,0.1287918]
[1729578479969,1.30641664,2658.4,2658.1,0.1287918]
[1729578480193,5.06807664,2658.4,2658.1,0.1287918]
[1729578481207,1.30641664,2658.3,2658.1,0.1287918]
[1729578482298,5.06807664,2658.4,2658.1,0.1287918]
[1729578485485,1.30641664,2658.3,2658.1,0.1287918]
[1729578485815,5.06807664,2658.4,2658.1,0.1287918]
[1729578487902,1.30641664,2658.3,2658.1,0.1287918]
[1729578501507,1.30641664,2658.2,2658.1,0.1287918]
[1729578501716,1.30641664,2658.3,2658.1,0.1287918]
[1729578505160,1.8930443,2658.3,2658.1,0.1287918]
[1729578506498,9.41655664,2658.2,2658.1,0.1287918]
[1729578506692,9.42655664,2658.2,2658.1,0.1287918]
[1729578506991,3.76287,2657.6,2657.3,2.6928]
[1729578507148,5.45048627,2657.6,2657.3,2.6928]
[1729578507352,5.45048627,2657.6,2657.4,0.10639686]
[1729578507645,1.30641664,2657.5,2657.4,0.10639686]
[1729578507851,1.68761627,2657.6,2657.4,0.10639686]
[1729578508963,5.45042627,2657.6,2657.4,0.10639686]
[1729578510488,3.76293,2657.5,2657.4,0.10639686]
[1729578511392,5.06934664,2657.5,2657.4,0.10639686]
[1729578511555,3.76293,2657.5,2657.4,0.10639686]
[1729578512285,5.45042627,2657.6,2657.4,0.10639686]
[1729578512453,9.21334627,2657.6,2657.4,0.10639686]
[1729578512681,9.21333627,2657.6,2657.4,0.10639686]
[1729578512854,3.76293,2657.5,2657.4,0.10639686]
[1729578513157,6.07319227,2657.5,2657.4,0.10639686]
[1729578535014,3.76307,2657.4,2657.3,1.9]
[1729578535215,5.06948664,2657.4,2657.3,1.9]
[1729578536721,3.76321,2657.3,2657.2,0.01882562]
[1729578537019,3.76321,2657.3,2657.0,0.8078]
[1729578537020,3.76343,2657.2,2657.0,0.8078]
[1729578537180,5.06984664,2657.2,2657.0,0.8078]
[1729578537694,3.7635,2657.1,2657.0,0.8078]
[1729578538217,3.7635,2657.1,2656.6,3.76413]
[1729578538218,5.86041664,2657.1,2656.5,1.9]
[1729578538421,5.07061664,2656.6,2656.5,1.9]
[1729578538934,8.07061664,2656.6,2656.5,1.9]
[1729578540718,6.7642,2656.6,2656.5,1.9]
[1729578541039,8.07061664,2656.6,2656.5,1.9]
[1729578541241,8.07061664,2656.6,2656.5,1.97661238]
[1729578546349,9.3331363,2656.6,2656.5,1.97661238]
[1729578549333,9.3331363,2656.6,2656.5,1.9]
[1729578554039,9.8831363,2656.6,2656.5,1.9]
[1729578564244,8.07061664,2656.6,2656.5,1.9]
[1729578564542,8.07061664,2656.6,2656.5,1.97304509]
[1729578568260,8.62061664,2656.6,2656.5,1.9]
[1729578570627,8.62061664,2656.6,2656.5,1.97304509]
[1729578571271,8.62061664,2656.6,2656.5,1.9]
[1729578571560,10.07259797,2656.6,2656.5,1.9]
[1729578572450,10.07259797,2656.6,2656.5,1.97304509]
[1729578586678,10.07259797,2656.6,2656.5,1.97147284]
[1729578597961,10.82649797,2656.6,2656.5,1.89842775]
[1729578600077,10.82649797,2656.6,2656.5,1.97145994]
[1729578617597,10.82649797,2656.6,2656.5,1.89842775]
[1729578621537,3.55,2656.5,2656.1,0.01882562]
[1729578621748,3.76568,2655.6,2655.3,0.7737]
[1729578622241,3.76568,2655.6,2655.5,0.8031]
[1729578622417,5.07209664,2655.6,2655.5,0.8031]
[1729578622610,1.30641664,2655.6,2655.5,0.8031]
[1729578622810,3.76562,2655.6,2655.5,0.87390469]
[1729578623333,3.76562,2655.6,2655.5,0.8031]
[1729578623541,5.07203664,2655.6,2655.5,0.8031]
[1729578623926,5.07203664,2655.6,2655.5,0.87413699]
[1729578629526,3.76529,2655.9,2655.5,0.87413699]
[1729578629728,3.76539,2655.8,2655.6,0.7943]
[1729578630057,5.47234774,2655.7,2655.6,0.7943]